fUSD/lending_fUSD_20260202
["ID","MTS","AMOUNT","RATE_DAILY","PERIOD"]
[404315701,1770055240130,-1272.29789361,0.00043287,120]
[404315702,1770055240170,-512.6,0.00043287,120]
[404315703,1770055240211,-500.0,0.00043287,120]
[404315704,1770055240250,-512.6,0.00043287,120]
[404315705,1770055240288,-577.98415318,0.00043287,120]
[404315706,1770055240325,-500.0,0.00043287,120]
[404315707,1770055240362,-512.6,0.00043287,120]
[404315708,1770055240402,-393.59066605,0.00043287,120]
[404315709,1770055240439,-512.6,0.00043287,120]
[404315710,1770055240477,-500.0,0.00043287,120]
[404315711,1770055240513,-512.6,0.00043287,120]
[404315712,1770055240558,-391.94648406,0.00043287,120]
[404315713,1770055240600,-512.6,0.00043287,120]
[404315714,1770055240637,-512.6,0.00043287,120]
[404315715,1770055240676,-512.6,0.00043287,120]
[404315716,1770055240712,-512.68210587,0.00043287,120]
[404315717,1770055240747,-596.98204664,0.00043287,120]
[404315718,1770055240783,-557.60986606,0.00043287,120]
[404315719,1770055240818,-541.6349799,0.00043287,120]
[404315720,1770055240852,-500.0,0.00043287,120]
[404315721,1770055240886,-393.92747636,0.00043287,120]
[404315722,1770055240922,-500.0,0.00043287,120]
[404315723,1770055240958,-610.5209043,0.00043287,120]
[404315724,1770055240996,-514.64683154,0.00043287,120]
[404315725,1770055241034,-500.0,0.00043287,120]
[404315726,1770055241072,-500.0,0.00043287,120]
[404315727,1770055241110,-500.0,0.00043287,120]
[404315728,1770055241148,-500.0,0.00043287,120]
[404315729,1770055241186,-500.0,0.00043287,60]
[404315730,1770055241227,-500.0,0.00043287,120]
[404315731,1770055241266,-500.0,0.00043287,60]
[404315732,1770055241301,-500.0,0.00043287,120]
[404315733,1770055241336,-229.63914064,0.00043287,60]
[404315734,1770055241372,-453.09371713,0.00043287,120]
[404315735,1770055241408,-538.52328609,0.00043287,120]
[404315736,1770055241446,-512.90378768,0.00043287,120]
[404315737,1770055241483,-500.0,0.00043287,120]
[404315738,1770055241522,-519.56930981,0.00043287,120]
[404315739,1770055241561,-500.0,0.00043287,120]
[404315740,1770055241600,-551.91567094,0.00043287,120]
[404315741,1770055241638,-509.02671071,0.00043287,120]
[404315742,1770055241679,-500.0,0.00043287,120]
[404315743,1770055241718,-525.78642962,0.00043287,120]
[404315744,1770055241756,-500.0,0.00043287,120]
[404315745,1770055241795,-500.0,0.00043287,120]
[404315746,1770055241829,-500.0,0.00043287,120]
[404315747,1770055241863,-500.0,0.00043287,120]
[404315748,1770055241897,-303.35963854,0.00043287,120]
[404315749,1770055241932,-500.0,0.00043287,120]
[404315750,1770055241967,-500.0,0.00043287,120]
[404315751,1770055242004,-442.44629168,0.00043287,120]
[404315752,1770055242041,-432.97371948,0.00043287,120]
[404315753,1770055242078,-500.0,0.00043287,120]
[404315754,1770055242115,-524.43435755,0.00043287,120]
[404315755,1770055242151,-566.49816842,0.00043287,120]
[404315756,1770055242189,-554.45151373,0.00043287,120]
[404315757,1770055242227,-500.0,0.00043287,120]
[404315758,1770055242266,-505.3708212,0.00043287,120]
[404315759,1770055242305,-500.0,0.00043287,120]
[404315760,1770055242347,-500.0,0.00043287,120]
[404315761,1770055242382,-341.1038678,0.00043287,120]
[404315762,1770055242421,-500.0,0.00043287,120]
[404315763,1770055242460,-526.74277393,0.00043287,60]
[404315764,1770055242498,-500.0,0.00043287,120]
[404315765,1770055242537,-529.18212808,0.00043287,120]
[404315766,1770055242574,-500.0,0.00043287,120]
[404315767,1770055242612,-500.0,0.00043287,120]
[404315768,1770055242652,-500.0,0.00043287,120]
[404315769,1770055242687,-500.0,0.00043287,120]
[404315770,1770055242723,-500.0,0.00043287,120]
[404315771,1770055242940,-571.14876167,0.00043287,120]
[404315772,1770055242983,-500.0,0.00043287,120]
[404315773,1770055243024,-500.0,0.00043287,120]
[404315774,1770055243063,-151.0,0.00043287,120]
[404315775,1770055243100,-500.0,0.00043287,120]
[404315776,1770055243140,-500.0,0.00043287,120]
[404315777,1770055243180,-607.93081789,0.00043287,120]
[404315778,1770055243222,-532.27236713,0.00043287,120]
[404315779,1770055243265,-500.0,0.00043287,120]
[404315780,1770055243307,-500.0,0.00043287,120]
[404315781,1770055243347,-500.0,0.00043287,120]
[404315782,1770055243386,-199.83821842,0.00043287,120]
[404315783,1770055243429,-514.09433036,0.00043287,120]
[404315784,1770055243485,-526.38597435,0.00043287,120]
[404315785,1770055243528,-500.0,0.00043287,120]
[404315786,1770055243569,-500.0,0.00043287,120]
[404315787,1770055243609,-551.585882,0.00043287,120]
[404315788,1770055243649,-621.03608243,0.00043287,120]
[404315789,1770055243688,-500.0,0.00043287,120]
[404315790,1770055243728,-151.0,0.00043287,120]
[404315791,1770055243768,-500.0,0.00043287,120]
[404315792,1770055243806,-517.84545868,0.00043287,120]
[404315793,1770055243846,-500.0,0.00043287,120]
[404315794,1770055243885,-500.0,0.00043287,120]
[404315795,1770055243924,-500.0,0.00043287,120]
[404315796,1770055243962,-472.94859389,0.00043287,120]
[404315797,1770055244001,-219.55487053,0.00043287,120]
[404315798,1770055244041,-500.0,0.00043287,120]
[404315799,1770055244081,-603.7792375,0.00043287,120]
[404315800,1770055244124,-151.0,0.00043287,120]
[404315801,1770055244166,-500.0,0.00043287,120]
[404315802,1770055244208,-500.0,0.00043287,120]
[404315803,1770055244248,-290.83783223,0.00043287,120]
[404315804,1770055244289,-500.0,0.00043287,120]
[404315805,1770055244328,-500.0,0.00043287,120]
[404315806,1770055244367,-500.0,0.00043287,120]
[404315807,1770055244406,-500.0,0.00043287,120]
[404315808,1770055244445,-500.0,0.00043287,120]
[404315809,1770055244482,-505.22517507,0.00043287,120]
[404315810,1770055244523,-412.15568556,0.00043287,120]
[404315811,1770055244561,-502.81336542,0.00043287,120]
[404315812,1770055244601,-500.0,0.00043287,120]
[404315813,1770055244646,-500.0,0.00043287,120]
[404315814,1770055244687,-151.0,0.00043287,120]
[404315815,1770055244735,-500.0,0.00043287,120]
[404315816,1770055244776,-500.0,0.00043287,120]
[404315817,1770055244816,-186.17967002,0.00043287,120]
[404315818,1770055244857,-400.0,0.00043287,120]
[404315819,1770055244903,-507.40056505,0.00043287,120]
[404315820,1770055244943,-550.2030404,0.00043287,120]
[404315821,1770055244985,-151.0,0.00043287,120]
[404315822,1770055245026,-512.30816344,0.00043287,120]
[404315823,1770055245067,-500.0,0.00043287,120]
[404315824,1770055245109,-151.0,0.00043287,120]
[404315825,1770055245150,-500.0,0.00043287,120]
[404315826,1770055245191,-496.50853409,0.00043287,120]
[404315827,1770055245232,-500.0,0.00043287,120]
[404315828,1770055245272,-500.0,0.00043287,120]
[404315829,1770055245311,-219.74910962,0.00043287,120]
[404315830,1770055245354,-507.49156839,0.00043287,120]
[404315831,1770055245395,-581.89190285,0.00043287,120]
[404315832,1770055245437,-500.0,0.00043287,120]
[404315833,1770055245480,-500.0,0.00043287,120]
[404315834,1770055245521,-522.39618325,0.00043287,120]
[404315835,1770055245563,-731.15,0.00043287,120]
[404315836,1770055245603,-500.0,0.00043287,120]
[404315837,1770055245644,-500.0,0.00043287,120]
[404315838,1770055245683,-731.15,0.00043287,120]
[404315839,1770055245723,-500.0,0.00043287,120]
[404315840,1770055245762,-500.0,0.00043287,120]
[404315841,1770055245801,-731.15,0.00043287,120]
[404315842,1770055245840,-500.0,0.00043287,120]
[404315843,1770055245878,-500.0,0.00043287,120]
[404315844,1770055245916,-731.15,0.00043287,120]
[404315845,1770055245955,-500.0,0.00043287,120]
[404315846,1770055245998,-490.81744866,0.00043287,120]
[404315847,1770055246040,-500.0,0.00043287,120]
[404315848,1770055246079,-611.13059147,0.00043287,120]
[404315849,1770055246117,-731.15,0.00043287,120]
[404315850,1770055246156,-500.0,0.00043287,120]
[404315851,1770055246196,-500.0,0.00043287,120]
[404315852,1770055246235,-558.94965345,0.00043287,14]
[404315853,1770055246275,-731.15,0.00043287,120]
[404315854,1770055246313,-578.59715523,0.00043287,120]
[404315855,1770055246352,-500.0,0.00043287,120]
[404315856,1770055246390,-731.15,0.00043287,120]
[404315857,1770055246429,-151.0,0.00043287,120]
[404315858,1770055246468,-500.0,0.00043287,120]
[404315859,1770055246506,-500.0,0.00043287,120]
[404315860,1770055246544,-731.15,0.00043287,120]
[404315861,1770055246584,-500.0,0.00043287,120]
[404315862,1770055246628,-500.0,0.00043287,120]
[404315863,1770055246669,-731.15,0.00043287,120]
[404315864,1770055246707,-262.88976789,0.00043287,120]
[404315865,1770055246745,-731.15,0.00043287,120]
[404315866,1770055246784,-731.15,0.00043287,120]
[404315867,1770055247084,-356.0397,0.00043287,120]
[404315868,1770055247124,-731.15,0.00043287,120]
[404315869,1770055247165,-500.0,0.00043287,120]
[404315870,1770055247213,-620.1466704,0.00043287,120]
[404315871,1770055247258,-731.15,0.00043287,120]
[404315872,1770055247300,-500.0,0.00043287,120]
[404315873,1770055247348,-731.15,0.00043287,120]
[404315874,1770055247395,-525.43354793,0.00043287,120]
[404315875,1770055247439,-521.12180884,0.00043287,120]
[404315876,1770055247481,-151.0,0.00043287,120]
[404315877,1770055247522,-500.0,0.00043287,120]
[404315878,1770055247563,-151.0,0.00043287,120]
[404315879,1770055247604,-731.15,0.00043287,120]
[404315880,1770055247644,-500.0,0.00043287,120]
[404315881,1770055247686,-731.15,0.00043287,120]
[404315882,1770055247726,-500.0,0.00043287,120]
[404315883,1770055247765,-731.15,0.00043287,120]
[404315884,1770055247806,-500.0,0.00043287,120]
[404315885,1770055247846,-731.15,0.00043287,120]
[404315886,1770055247887,-500.0,0.00043287,120]
[404315887,1770055247928,-500.0,0.00043287,120]
[404315888,1770055247970,-500.0,0.00043287,120]
[404315889,1770055248011,-731.15,0.00043287,120]
[404315890,1770055248051,-500.0,0.00043287,120]
[404315891,1770055248092,-500.0,0.00043287,120]
[404315892,1770055248133,-500.0,0.00043287,120]
[404315893,1770055248173,-731.15,0.00043287,120]
[404315894,1770055248218,-308.16466948,0.00043287,120]
[404315895,1770055248259,-500.0,0.00043287,120]
[404315896,1770055248299,-151.0,0.00043287,120]
[404315897,1770055248339,-500.0,0.00043287,120]
[404315898,1770055248379,-731.15,0.00043287,120]
[404315899,1770055248419,-151.0,0.00043287,120]
[404315900,1770055248458,-402.16572203,0.00043287,120]
[404315901,1770055248496,-500.0,0.00043287,120]
[404315902,1770055248536,-731.15,0.00043287,120]
[404315903,1770055248575,-513.72604949,0.00043287,120]
[404315904,1770055248611,-500.0,0.00043287,120]
[404315905,1770055248647,-731.15,0.00043287,120]
[404315906,1770055248685,-388.64374367,0.00043287,120]
[404315907,1770055248722,-731.27465322,0.00043287,120]
[404315908,1770055248758,-509.46486983,0.00043287,120]
[404315909,1770055248795,-500.0,0.00043287,120]
[404315910,1770055248832,-500.0,0.00043287,120]
[404315911,1770055248870,-525.80766537,0.00043287,120]
[404315912,1770055248910,-500.0,0.00043287,120]
[404315913,1770055248947,-643.1232256,0.00043287,120]
[404315914,1770055248983,-548.00125135,0.00043287,120]
[404315915,1770055249021,-517.9372503,0.00043287,120]
[404315916,1770055249059,-154.12618634,0.00043287,120]
[404315917,1770055249096,-500.0,0.00043287,120]
[404315918,1770055249136,-500.0,0.00043287,120]
[404315919,1770055249176,-500.0,0.00043287,120]
[404315920,1770055249216,-500.0,0.00043287,120]
[404315921,1770055249252,-500.0,0.00043287,120]
[404315922,1770055249288,-519.51638853,0.00043287,120]
[404315923,1770055249323,-262.78489501,0.00043287,120]
[404315924,1770055249359,-585.24799687,0.00043287,120]
[404315925,1770055249397,-504.97408709,0.00043287,120]
[404315926,1770055249436,-535.68398373,0.00043287,120]
[404315927,1770055249472,-500.0,0.00043287,120]
[404315928,1770055249507,-521.5385703,0.00043287,120]
[404315929,1770055249542,-500.0,0.00043287,120]
[404315930,1770055249579,-500.0,0.00043287,120]
[404315931,1770055249616,-500.0,0.00043287,120]
[404315932,1770055249653,-500.0,0.00043287,120]
[404315933,1770055249691,-500.0,0.00043287,120]
[404315934,1770055249728,-500.0,0.00043287,120]
[404315935,1770055249766,-500.0,0.00043287,120]
[404315936,1770055249806,-500.0,0.00043287,120]
[404315937,1770055249848,-500.0,0.00043287,120]
[404315938,1770055249887,-500.0,0.00043287,120]
[404315939,1770055249927,-562.43071974,0.00043287,120]
[404315940,1770055249968,-500.0,0.00043287,120]
[404315941,1770055250008,-500.0,0.00043287,120]
[404315942,1770055250047,-500.0,0.00043287,120]
[404315943,1770055250087,-500.0,0.00043287,120]
[404315944,1770055250126,-500.0,0.00043287,120]
[404315945,1770055250163,-247.53213301,0.00043287,120]
[404315946,1770055250201,-500.0,0.00043287,120]
[404315947,1770055250239,-500.0,0.00043287,120]
[404315948,1770055250276,-500.0,0.00043287,120]
[404315949,1770055250314,-576.90155795,0.00043287,120]
[404315950,1770055250349,-500.0,0.00043287,120]
[404315951,1770055250386,-500.0,0.00043287,120]
[404315952,1770055250421,-617.9191841,0.00043287,120]
[404315953,1770055250463,-500.0,0.00043287,120]
[404315954,1770055250500,-500.0,0.00043287,120]
[404315955,1770055250537,-515.86249391,0.00043287,120]
[404315956,1770055250575,-320.10146207,0.00043287,120]
[404315957,1770055250614,-500.0,0.00043287,120]
[404315958,1770055250651,-500.0,0.00043287,120]
[404315959,1770055250688,-508.18349146,0.00043287,120]
[404315960,1770055250723,-500.0,0.00043287,120]
[404315961,1770055250761,-500.0,0.00043287,120]
[404315962,1770055251066,-613.99745036,0.00043287,120]
[404315963,1770055251108,-500.0,0.00043287,120]
[404315964,1770055251147,-500.0,0.00043287,120]
[404315965,1770055251186,-500.0,0.00043287,120]
[404315966,1770055251226,-5059.764648,0.00043287,120]
[404315967,1770055251264,-500.0,0.00043287,120]
[404315968,1770055251300,-500.0,0.00043287,120]
[404315969,1770055251338,-500.0,0.00043287,120]
[404315970,1770055251378,-500.0,0.00043287,120]
[404315971,1770055251416,-173.60535407,0.00043287,120]
[404315972,1770055251454,-500.0,0.00043287,120]
[404315973,1770055251493,-500.0,0.00043287,120]
[404315974,1770055251532,-500.0,0.00043287,120]
[404315975,1770055251571,-500.0,0.00043287,120]
[404315976,1770055251611,-5059.764648,0.00043287,120]
[404315977,1770055251656,-500.0,0.00043287,120]
[404315978,1770055251699,-500.0,0.00043287,120]
[404315979,1770055251739,-500.0,0.00043287,120]
[404315980,1770055251781,-500.0,0.00043287,120]
[404315981,1770055251822,-500.0,0.00043287,120]
[404315982,1770055251861,-500.0,0.00043287,120]
[404315983,1770055251904,-586.39157477,0.00043287,120]
[404315984,1770055251944,-500.0,0.00043287,120]
[404315985,1770055251984,-5059.764648,0.00043287,120]
[404315986,1770055252024,-500.0,0.00043287,120]
[404315987,1770055252068,-500.0,0.00043287,120]
[404315988,1770055252108,-621.43001942,0.00043287,120]
[404315989,1770055252147,-500.0,0.00043287,120]
[404315990,1770055252189,-500.0,0.00043287,120]
[404315991,1770055252229,-500.0,0.00043287,120]
[404315992,1770055252270,-573.00069161,0.00043287,120]
[404315993,1770055252312,-509.5211203,0.00043287,120]
[404315994,1770055252353,-500.0,0.00043287,120]
[404315995,1770055252393,-526.77983276,0.00043287,120]
[404315996,1770055252434,-500.0,0.00043287,120]
[404315997,1770055252474,-500.0,0.00043287,120]
[404315998,1770055252515,-180.99698234,0.00043287,120]
[404315999,1770055252559,-5059.764653,0.00043287,120]
[404316000,1770055252604,-500.0,0.00043287,120]
[404316001,1770055252644,-505.33031146,0.00043287,120]
[404316002,1770055252683,-500.0,0.00043287,120]
[404316003,1770055252723,-500.0,0.00043287,120]
[404316004,1770055252763,-500.0,0.00043287,120]
[404316005,1770055252802,-500.0,0.00043287,120]
[404316006,1770055252848,-500.0,0.00043287,120]
[404316007,1770055252888,-620.02099101,0.00043287,120]
[404316008,1770055252929,-500.0,0.00043287,120]
[404316009,1770055252969,-618.82,0.00043287,120]
[404316010,1770055253016,-500.0,0.00043287,120]
[404316011,1770055253060,-515.11277146,0.00043287,120]
[404316012,1770055253103,-500.0,0.00043287,120]
[404316013,1770055253147,-541.99636939,0.00043287,120]
[404316014,1770055253192,-500.0,0.00043287,120]
[404316015,1770055253235,-500.0,0.00043287,120]
[404316016,1770055253277,-500.0,0.00043287,120]
[404316017,1770055253318,-500.0,0.00043287,120]
[404316018,1770055253358,-500.0,0.00043287,120]
[404316019,1770055253399,-500.0,0.00043287,120]
[404316020,1770055253438,-500.0,0.00043287,120]
[404316021,1770055253480,-500.0,0.00043287,120]
[404316022,1770055253518,-500.0,0.00043287,120]
[404316023,1770055253562,-500.0,0.00043287,120]
[404316024,1770055253603,-500.0,0.00043287,120]
[404316025,1770055253647,-500.0,0.00043287,120]
[404316026,1770055253691,-500.0,0.00043287,120]
[404316027,1770055253735,-500.0,0.00043287,120]
[404316028,1770055253778,-500.0,0.00043287,120]
[404316029,1770055253823,-500.0,0.00043287,120]
[404316030,1770055253866,-500.0,0.00043287,120]
[404316031,1770055253908,-530.62649838,0.00043287,120]
[404316032,1770055253951,-500.0,0.00043287,120]
[404316033,1770055253991,-500.0,0.00043287,120]
[404316034,1770055254035,-535.1883575,0.00043287,120]
[404316035,1770055254080,-500.0,0.00043287,120]
[404316036,1770055254124,-540.95797997,0.00043287,120]
[404316037,1770055254168,-500.0,0.00043287,120]
[404316038,1770055254212,-368.62236721,0.00043287,120]
[404316039,1770055254253,-500.0,0.00043287,120]
[404316040,1770055254292,-500.0,0.00043287,120]
[404316041,1770055254331,-500.0,0.00043287,120]
[404316042,1770055254369,-513.15393369,0.00043287,120]
[404316043,1770055254407,-500.0,0.00043287,120]
[404316044,1770055254446,-623.86958826,0.00043287,120]
[404316045,1770055254484,-500.0,0.00043287,120]
[404316046,1770055254523,-575.73993683,0.00043287,120]
[404316047,1770055254566,-500.0,0.00043287,120]
[404316048,1770055254605,-500.0,0.00043287,120]
[404316049,1770055254643,-500.0,0.00043287,120]
[404316050,1770055254680,-500.0,0.00043287,120]
[404316051,1770055254719,-500.0,0.00043287,120]
[404316052,1770055254758,-599.60072549,0.00043287,120]
[404316053,1770055254797,-500.0,0.00043287,120]
[404316054,1770055254835,-537.0649573,0.00043287,120]
[404316055,1770055254874,-500.0,0.00043287,120]
[404316056,1770055254912,-500.0,0.00043287,120]
[404316057,1770055255121,-500.0,0.00043287,120]
[404316058,1770055255165,-500.0,0.00043287,120]
[404316059,1770055255210,-500.0,0.00043287,120]
[404316060,1770055255251,-500.0,0.00043287,120]
[404316061,1770055255292,-500.0,0.00043287,120]
[404316062,1770055255348,-500.0,0.00043287,120]
[404316063,1770055255391,-500.0,0.00043287,120]
[404316064,1770055255434,-500.0,0.00043287,120]
[404316065,1770055255478,-500.0,0.00043287,120]
[404316066,1770055255520,-500.0,0.00043287,120]
[404316067,1770055255563,-500.0,0.00043287,120]
[404316068,1770055255604,-625.7721394,0.00043287,120]
[404316069,1770055255641,-500.0,0.00043287,120]
[404316070,1770055255679,-500.0,0.00043287,120]
[404316071,1770055255716,-510.96112077,0.00043287,120]
[404316072,1770055255753,-500.0,0.00043287,120]
[404316073,1770055255791,-500.0,0.00043287,120]
[404316074,1770055255831,-489.02989148,0.00043287,120]
[404316075,1770055255869,-413.19060476,0.00043287,120]
[404316076,1770055255912,-500.0,0.00043287,120]
[404316077,1770055255950,-500.0,0.00043287,120]
[404316078,1770055255994,-500.0,0.00043287,120]
[404316079,1770055256038,-500.0,0.00043287,120]
[404316080,1770055256079,-500.0,0.00043287,120]
[404316081,1770055256119,-500.0,0.00043287,120]
[404316082,1770055256161,-500.0,0.00043287,120]
[404316083,1770055256202,-500.0,0.00043287,120]
[404316084,1770055256243,-250.164865,0.00043287,120]
[404316085,1770055256284,-500.0,0.00043287,120]
[404316086,1770055256327,-500.0,0.00043287,120]
[404316087,1770055256368,-500.0,0.00043287,120]
[404316088,1770055256408,-516.78687081,0.00043287,120]
[404316089,1770055256447,-500.0,0.00043287,120]
[404316090,1770055256485,-500.0,0.00043287,120]
[404316091,1770055256531,-500.0,0.00043287,120]
[404316092,1770055256571,-500.0,0.00043287,120]
[404316093,1770055256611,-577.38865372,0.00043287,120]
[404316094,1770055256650,-500.0,0.00043287,120]
[404316095,1770055256688,-500.0,0.00043287,120]
[404316096,1770055256727,-500.0,0.00043287,120]
[404316097,1770055256765,-408.48353483,0.00043287,120]
[404316098,1770055256804,-500.0,0.00043287,120]
[404316099,1770055256842,-500.0,0.00043287,120]
[404316100,1770055256879,-500.0,0.00043287,120]
[404316101,1770055256915,-283.28436609,0.00043287,120]
[404316102,1770055256952,-582.34333414,0.00043287,120]
[404316103,1770055256988,-500.0,0.00043287,120]
[404316104,1770055257024,-523.26698126,0.00043287,120]
[404316105,1770055257064,-512.36232959,0.00043287,120]
[404316106,1770055257106,-500.0,0.00043287,120]
[404316107,1770055257143,-500.0,0.00043287,120]
[404316108,1770055257184,-500.0,0.00043287,120]
[404316109,1770055257223,-500.0,0.00043287,120]
[404316110,1770055257261,-500.0,0.00043287,120]
[404316111,1770055257299,-500.0,0.00043287,120]
[404316112,1770055257333,-500.0,0.00043287,120]
[404316113,1770055257372,-500.0,0.00043287,120]
[404316114,1770055257411,-500.0,0.00043287,120]
[404316115,1770055257449,-500.0,0.00043287,120]
[404316116,1770055257486,-511.47909025,0.00043287,120]
[404316117,1770055257529,-500.0,0.00043287,120]
[404316118,1770055257569,-251.337364,0.00043287,120]
[404316119,1770055257609,-500.0,0.00043287,120]
[404316120,1770055257648,-500.0,0.00043287,120]
[404316121,1770055257686,-573.02502958,0.00043287,120]
[404316122,1770055257726,-543.78841056,0.00043287,120]
[404316123,1770055257765,-500.0,0.00043287,120]
[404316124,1770055257806,-500.0,0.00043287,120]
[404316125,1770055257845,-500.0,0.00043287,120]
[404316126,1770055257885,-500.0,0.00043287,120]
[404316127,1770055257928,-266.12795259,0.00043287,120]
[404316128,1770055257970,-585.64338013,0.00043287,120]
[404316129,1770055258009,-582.44415923,0.00043287,120]
[404316130,1770055258049,-500.0,0.00043287,120]
[404316131,1770055258093,-500.0,0.00043287,120]
[404316132,1770055258137,-513.79467066,0.00043287,120]
[404316133,1770055258177,-500.0,0.00043287,120]
[404316134,1770055258216,-500.0,0.00043287,120]
[404316135,1770055258253,-500.0,0.00043287,120]
[404316136,1770055258290,-500.0,0.00043287,120]
[404316137,1770055258325,-500.0,0.00043287,120]
[404316138,1770055258362,-500.0,0.00043287,120]
[404316139,1770055258398,-150.88860793,0.00043287,120]
[404316140,1770055258438,-500.0,0.00043287,120]
[404316141,1770055258474,-500.0,0.00043287,120]
[404316142,1770055258510,-500.0,0.00043287,120]
[404316143,1770055258547,-500.0,0.00043287,120]
[404316144,1770055258583,-500.0,0.00043287,120]
[404316145,1770055258620,-513.44931373,0.00043287,120]
[404316146,1770055258658,-500.0,0.00043287,120]
[404316147,1770055258697,-500.0,0.00043287,120]
[404316148,1770055258744,-500.0,0.00043287,120]
[404316149,1770055258788,-500.0,0.00043287,120]
[404316150,1770055258831,-242.25730445,0.00043287,120]
[404316151,1770055258872,-500.0,0.00043287,120]
[404316152,1770055258912,-500.0,0.00043287,120]
[404316153,1770055259225,-493.41068494,0.00043287,120]
[404316154,1770055259261,-500.0,0.00043287,120]
[404316155,1770055259298,-500.0,0.00043287,120]
[404316156,1770055259335,-206.32838656,0.00043287,120]
[404316157,1770055259371,-500.0,0.00043287,120]
[404316158,1770055259407,-500.0,0.00043287,120]
[404316159,1770055259442,-500.0,0.00043287,120]
[404316160,1770055259476,-500.0,0.00043287,120]
[404316161,1770055259510,-500.0,0.00043287,120]
[404316162,1770055259545,-500.0,0.00043287,120]
[404316163,1770055259583,-500.0,0.00043287,120]
[404316164,1770055259623,-500.0,0.00043287,120]
[404316165,1770055259663,-500.0,0.00043287,120]
[404316166,1770055259700,-500.0,0.00043287,120]
[404316167,1770055259739,-500.0,0.00043287,120]
[404316168,1770055259776,-500.0,0.00043287,120]
[404316169,1770055259813,-500.0,0.00043287,120]
[404316170,1770055259851,-500.0,0.00043287,120]
[404316171,1770055259889,-500.0,0.00043287,120]
[404316172,1770055259926,-500.0,0.00043287,120]
[404316173,1770055259967,-500.0,0.00043287,120]
[404316174,1770055260009,-405.36660332,0.00043287,120]
[404316175,1770055260049,-514.13116231,0.00043287,120]
[404316176,1770055260093,-500.0,0.00043287,120]
[404316177,1770055260139,-500.0,0.00043287,120]
[404316178,1770055260183,-500.0,0.00043287,120]
[404316179,1770055260227,-500.0,0.00043287,120]
[404316180,1770055260270,-531.62524107,0.00043287,120]
[404316181,1770055260309,-500.0,0.00043287,120]
[404316182,1770055260352,-500.0,0.00043287,120]
[404316183,1770055260394,-500.0,0.00043287,120]
[404316184,1770055260439,-625.46511823,0.00043287,120]
[404316185,1770055260479,-151.0,0.00043287,120]
[404316186,1770055260519,-500.0,0.00043287,120]
[404316187,1770055260558,-500.0,0.00043287,120]
[404316188,1770055260596,-526.32375696,0.00043287,120]
[404316189,1770055260640,-327.23988548,0.00043287,120]
[404316190,1770055260677,-500.0,0.00043287,120]
[404316191,1770055260715,-500.0,0.00043287,120]
[404316192,1770055260750,-539.77807956,0.00043287,120]
[404316193,1770055260786,-500.0,0.00043287,120]
[404316194,1770055260825,-170.93932324,0.00043287,120]
[404316195,1770055260863,-500.0,0.00043287,120]
[404316196,1770055260899,-500.0,0.00043287,120]
[404316197,1770055260935,-500.0,0.00043287,120]
[404316198,1770055260975,-464.765862,0.00043287,120]
[404316199,1770055261011,-500.0,0.00043287,120]
[404316200,1770055261048,-500.0,0.00043287,120]